fUSD/lending_fUSD_20240630
["ID","MTS","AMOUNT","RATE_DAILY","PERIOD"]
[330760411,1719759053650,-500.0,0.00014355,3]
[330760412,1719759053660,-500.0,0.00014355,3]
[330760413,1719759053670,-2165.81,0.00014355,3]
[330760414,1719759053683,-265.09,0.00014355,3]
[330760415,1719759053692,-391.71,0.00014355,3]
[330760416,1719759053704,-12970.53,0.00014355,3]
[330760417,1719759053715,-500.0,0.00014355,3]
[330760418,1719759053725,-500.0,0.00014355,3]
[330760419,1719759053735,-500.0,0.00014355,3]
[330760420,1719759053745,-201.73,0.00014355,3]
[330760421,1719759053756,-500.0,0.00014355,3]
[330760422,1719759053766,-1300.21,0.00014355,3]
[330760423,1719759053776,-656.32,0.00014355,3]
[330760424,1719759053787,-1073.9,0.00014355,3]
[330760425,1719759053797,-500.0,0.00014355,3]
[330760426,1719759053807,-500.0,0.00014355,3]
[330760427,1719759053817,-520.83,0.00014355,3]
[330760428,1719759053827,-500.0,0.00014355,3]
[330760429,1719759053836,-665.72,0.00014355,3]
[330760430,1719759053846,-500.0,0.00014355,3]
[330760431,1719759053856,-500.0,0.00014355,3]
[330760432,1719759053865,-600.44,0.00014355,3]
[330760433,1719759053875,-500.0,0.00014355,3]
[330760434,1719759053885,-500.0,0.00014355,3]
[330760435,1719759053896,-974.46,0.00014355,3]
[330760436,1719759053905,-500.0,0.00014355,3]
[330760437,1719759053915,-500.0,0.00014355,3]
[330760438,1719759053926,-500.0,0.00014355,3]
[330760439,1719759053935,-500.0,0.00014363,3]
[330760440,1719759053944,-500.0,0.00014363,3]
[330760441,1719759053954,-513.85,0.00014363,3]
[330760442,1719759053963,-2491.27,0.00014363,3]
[330760443,1719759053974,-500.0,0.00014363,3]
[330760444,1719759053984,-776.8,0.00014363,3]
[330760445,1719759053995,-426.0,0.00014363,3]
[330760446,1719759054007,-500.0,0.00014363,3]
[330760447,1719759054019,-500.0,0.00014363,3]
[330760448,1719759054030,-500.0,0.00014363,3]
[330760449,1719759054039,-500.0,0.00014363,3]
[330760450,1719759054051,-500.0,0.00014363,3]
[330760451,1719759054060,-1029.4,0.00014363,3]
[330760452,1719759054070,-221.96,0.00014363,3]
[330760453,1719759054081,-500.0,0.00014363,3]
[330760454,1719759054092,-309.87294497,0.00014363,3]
[330760455,1719759054102,-555.90112687,0.00014363,3]
[330760456,1719759054123,-500.0,0.00014363,3]
[330760457,1719759054134,-500.0,0.00014363,3]
[330760458,1719759054144,-500.0,0.00014363,3]
[330760459,1719759054156,-500.0,0.00014363,3]
[330760460,1719759054166,-500.0,0.00014363,3]
[330760461,1719759054178,-500.0,0.00014363,3]
[330760462,1719759054189,-500.0,0.00014363,3]
[330760463,1719759054199,-205.19,0.00014363,3]
[330760464,1719759054209,-500.0,0.00014364,3]
[330760465,1719759054219,-500.0,0.00014364,3]
[330760466,1719759054230,-500.0,0.00014364,3]
[330760467,1719759054240,-500.0,0.00014364,3]
[330760468,1719759054252,-500.0,0.00014364,3]
[330760469,1719759054263,-722.29,0.00014364,3]
[330760470,1719759054273,-500.0,0.00014364,3]
[330760471,1719759054284,-500.0,0.00014364,3]
[330760472,1719759054294,-500.0,0.00014364,3]
[330760473,1719759054305,-500.0,0.00014364,3]
[330760474,1719759054315,-500.0,0.00014364,3]
[330760475,1719759054326,-500.0,0.00014364,3]
[330760476,1719759054335,-500.0,0.00014364,3]
[330760477,1719759054346,-1616.54,0.00014364,3]
[330760478,1719759054355,-500.0,0.00014364,3]
[330760479,1719759054366,-500.0,0.00014364,3]
[330760480,1719759054376,-500.0,0.00014364,3]
[330760481,1719759054386,-500.0,0.00014364,3]
[330760482,1719759054396,-500.0,0.00014364,3]
[330760483,1719759054406,-500.0,0.00014364,3]
[330760484,1719759054416,-500.0,0.00014364,3]
[330760485,1719759054427,-655.58,0.00014364,3]
[330760486,1719759054437,-500.0,0.00014364,3]
[330760487,1719759054447,-500.0,0.00014364,3]
[330760488,1719759054458,-708.73,0.00014364,3]
[330760489,1719759054468,-500.0,0.00014364,3]
[330760490,1719759054478,-500.0,0.00014364,3]
[330760491,1719759054488,-500.0,0.00014364,3]
[330760492,1719759054498,-500.0,0.00014364,3]
[330760493,1719759054508,-500.0,0.00014364,3]
[330760494,1719759054518,-500.0,0.00014364,3]
[330760495,1719759054528,-500.0,0.00014364,3]
[330760496,1719759054538,-500.0,0.00014364,3]
[330760497,1719759054547,-586.04,0.00014364,3]
[330760498,1719759054557,-245.28,0.00014364,3]
[330760499,1719759054568,-500.0,0.00014364,3]
[330760500,1719759054577,-1361.81,0.00014364,3]
[330760501,1719759054587,-500.0,0.00014364,3]
[330760502,1719759054598,-500.0,0.00014364,3]
[330760503,1719759054608,-500.0,0.00014364,3]
[330760504,1719759054619,-500.0,0.00014364,3]
[330760505,1719759054630,-500.0,0.00014364,3]
[330760506,1719759054640,-157.48,0.00014384,2]
[330760507,1719759054650,-291.29,0.00014384,2]
[330760508,1719759054665,-463.5,0.000144,2]
[330760509,1719759054677,-377.09,0.00014463,3]
[330760510,1719759054687,-260.52,0.00014463,3]
[330760511,1719759054696,-563.7,0.00014463,3]
[330760512,1719759054707,-699.49,0.00014463,3]
[330760513,1719759054718,-500.0,0.00014463,3]
[330760514,1719759054728,-500.0,0.00014463,3]
[330760515,1719759054738,-150.0,0.00014463,3]
[330760516,1719759054747,-500.0,0.00014463,3]
[330760517,1719759054757,-584.88,0.00014463,3]
[330760518,1719759054767,-500.0,0.00014463,3]
[330760519,1719759054779,-500.0,0.00014463,3]
[330760520,1719759054789,-500.0,0.00014463,3]
[330760521,1719759054799,-500.0,0.00014463,3]
[330760522,1719759054808,-637.43,0.00014463,3]
[330760523,1719759054819,-641.74,0.00014463,3]
[330760524,1719759054828,-791.92,0.00014463,3]
[330760525,1719759054838,-500.0,0.00014463,3]
[330760526,1719759054847,-287.18,0.00014463,3]
[330760527,1719759054857,-438.44,0.00014463,3]
[330760528,1719759054867,-500.0,0.00014463,3]
[330760529,1719759054877,-579.92,0.00014463,3]
[330760530,1719759054888,-500.0,0.00014463,3]
[330760531,1719759054898,-1002.91,0.00014463,3]
[330760532,1719759054907,-500.0,0.00014463,3]
[330760533,1719759055260,-500.0,0.00014463,3]
[330760534,1719759055271,-286.59,0.00014463,3]
[330760535,1719759055281,-529.33,0.00014463,3]
[330760536,1719759055291,-665.72,0.00014464,3]
[330760537,1719759055301,-500.0,0.00014465,3]
[330760538,1719759055310,-500.0,0.00014465,3]
[330760539,1719759055320,-500.0,0.00014465,3]
[330760540,1719759055330,-500.0,0.00014465,3]
[330760541,1719759055339,-500.0,0.00014465,3]
[330760542,1719759055349,-500.0,0.00014465,3]
[330760543,1719759055359,-500.0,0.00014465,3]
[330760544,1719759055369,-500.0,0.00014465,3]
[330760545,1719759055378,-500.0,0.00014465,3]
[330760546,1719759055388,-500.0,0.00014465,3]
[330760547,1719759055398,-500.0,0.00014465,3]
[330760548,1719759055408,-500.0,0.00014465,3]
[330760549,1719759055418,-500.0,0.00014465,3]
[330760550,1719759055429,-500.0,0.00014465,3]
[330760551,1719759055439,-2165.81,0.00014465,3]
[330760552,1719759055448,-12970.53,0.00014465,3]
[330760553,1719759055458,-283.36,0.00014465,3]
[330760554,1719759055467,-500.0,0.00014465,3]
[330760555,1719759055477,-500.0,0.00014465,3]
[330760556,1719759055486,-500.0,0.00014465,3]
[330760557,1719759055495,-1300.21,0.00014465,3]
[330760558,1719759055505,-656.32,0.00014465,3]
[330760559,1719759055515,-1073.9,0.00014465,3]
[330760560,1719759055524,-500.0,0.00014465,3]
[330760561,1719759055534,-500.0,0.00014465,3]
[330760562,1719759055544,-520.83,0.00014465,3]
[330760563,1719759055554,-500.0,0.00014465,3]
[330760564,1719759055564,-500.0,0.00014465,3]
[330760565,1719759055574,-500.0,0.00014465,3]
[330760566,1719759055584,-600.44,0.00014465,3]
[330760567,1719759055595,-500.0,0.00014465,3]
[330760568,1719759055606,-500.0,0.00014465,3]
[330760569,1719759055615,-974.46,0.00014465,3]
[330760570,1719759055626,-500.0,0.00014465,3]
[330760571,1719759055635,-500.0,0.00014465,3]
[330760572,1719759055645,-328.16,0.00014465,3]
[330760573,1719759055655,-500.0,0.00014473,3]
[330760574,1719759055665,-500.0,0.00014473,3]
[330760575,1719759055676,-500.0,0.00014473,3]
[330760576,1719759055686,-500.0,0.00014473,3]
[330760577,1719759055696,-500.0,0.00014473,3]
[330760578,1719759055706,-722.29,0.00014473,3]
[330760579,1719759055716,-500.0,0.00014473,3]
[330760580,1719759055726,-500.0,0.00014473,3]
[330760581,1719759055736,-500.0,0.00014473,3]
[330760582,1719759055746,-504.89,0.00014473,3]
[330760583,1719759055756,-349.51662576,0.00014473,3]
[330760584,1719759055766,-503.99,0.00014473,3]
[330760585,1719759055775,-500.0,0.00014473,3]
[330760586,1719759055785,-1616.54,0.00014473,3]
[330760587,1719759055794,-572.43100163,0.00014473,3]
[330760588,1719759055804,-433.29187511,0.00014473,3]
[330760589,1719759055814,-500.0,0.00014473,3]
[330760590,1719759055823,-500.0,0.00014473,3]
[330760591,1719759055833,-500.0,0.00014473,3]
[330760592,1719759055842,-500.0,0.00014473,3]
[330760593,1719759055852,-500.0,0.00014473,3]
[330760594,1719759055862,-500.0,0.00014473,3]
[330760595,1719759055871,-500.0,0.00014473,3]
[330760596,1719759055881,-513.85,0.00014473,3]
[330760597,1719759055891,-655.58,0.00014473,3]
[330760598,1719759055901,-2491.27,0.00014473,3]
[330760599,1719759055911,-500.0,0.00014473,3]
[330760600,1719759055920,-500.0,0.00014473,3]
[330760601,1719759055932,-708.73,0.00014473,3]
[330760602,1719759055941,-500.0,0.00014473,3]
[330760603,1719759055950,-227.06,0.00014473,3]
[330760604,1719759055960,-500.0,0.00014473,3]
[330760605,1719759055969,-776.8,0.00014473,3]
[330760606,1719759055979,-500.0,0.00014473,3]
[330760607,1719759055988,-500.0,0.00014473,3]
[330760608,1719759055999,-500.0,0.00014473,3]
[330760609,1719759056013,-432.35,0.00014473,3]
[330760610,1719759056022,-500.0,0.00014473,3]
[330760611,1719759056032,-500.0,0.00014473,3]
[330760612,1719759056041,-500.0,0.00014473,3]
[330760613,1719759056050,-500.0,0.00014473,3]
[330760614,1719759056061,-500.0,0.00014473,3]
[330760615,1719759056071,-500.0,0.00014473,3]
[330760616,1719759056080,-500.0,0.00014473,3]
[330760617,1719759056092,-1029.4,0.00014473,3]
[330760618,1719759056103,-500.0,0.00014473,3]
[330760619,1719759056113,-1361.81,0.00014473,3]
[330760620,1719759056123,-500.0,0.00014473,3]
[330760621,1719759056132,-227.54,0.00014473,3]
[330760622,1719759056141,-500.0,0.00014473,3]
[330760623,1719759056152,-500.0,0.00014473,3]
[330760624,1719759056162,-500.0,0.00014473,3]
[330760625,1719759056174,-602.64,0.00014473,3]
[330760626,1719759056184,-375.15,0.00014473,3]
[330760627,1719759056193,-500.0,0.00014473,3]
[330760628,1719759056203,-500.0,0.00014473,3]
[330760629,1719759056213,-320.13,0.00014473,3]
[330760630,1719759056223,-500.0,0.00014473,3]
[330760631,1719759056232,-500.0,0.00014473,3]
[330760632,1719759056242,-500.0,0.00014473,3]
[330760633,1719759056252,-900.0,0.000145,2]
[330760634,1719759056262,-699.49,0.00014573,3]
[330760635,1719759056272,-500.0,0.00014573,3]
[330760636,1719759056281,-500.0,0.00014573,3]
[330760637,1719759056291,-150.0,0.00014573,3]
[330760638,1719759056300,-362.42,0.00014573,3]
[330760639,1719759056310,-573.35,0.00014573,3]
[330760640,1719759056321,-587.71,0.00014573,3]
[330760641,1719759056331,-500.0,0.00014573,3]
[330760642,1719759056340,-500.0,0.00014573,3]
[330760643,1719759056350,-791.92,0.00014573,3]
[330760644,1719759056360,-500.0,0.00014573,3]
[330760645,1719759056370,-500.0,0.00014573,3]
[330760646,1719759056380,-579.92,0.00014573,3]
[330760647,1719759056390,-167.55,0.00014573,3]
[330760648,1719759056400,-1002.91,0.00014573,3]
[330760649,1719759056411,-614.92,0.00014573,3]
[330760650,1719759056421,-500.0,0.00014573,3]
[330760651,1719759056432,-500.0,0.00014574,3]
[330760652,1719759056442,-636.5,0.00014574,3]
[330760653,1719759056452,-500.0,0.00014574,3]
[330760654,1719759056462,-500.0,0.00014574,3]
[330760655,1719759056472,-500.0,0.00014574,3]
[330760656,1719759056483,-500.0,0.00014574,3]
[330760657,1719759056493,-500.0,0.00014574,3]
[330760658,1719759056503,-500.0,0.00014574,3]
[330760659,1719759056513,-500.0,0.00014574,3]
[330760660,1719759056523,-311.23,0.00014574,3]
[330760661,1719759056534,-500.0,0.00014574,3]
[330760662,1719759056545,-500.0,0.00014574,3]
[330760663,1719759056555,-500.0,0.00014574,3]
[330760664,1719759056564,-500.0,0.00014574,3]
[330760665,1719759056575,-2165.81,0.00014574,3]
[330760666,1719759056584,-12970.53,0.00014574,3]
[330760667,1719759056594,-500.0,0.00014574,3]
[330760668,1719759056604,-500.0,0.00014574,3]
[330760669,1719759056614,-492.97,0.00014574,3]
[330760670,1719759056624,-1300.21,0.00014574,3]
[330760671,1719759056633,-656.32,0.00014574,3]
[330760672,1719759056643,-1073.9,0.00014574,3]
[330760673,1719759056653,-500.0,0.00014574,3]
[330760674,1719759056663,-500.0,0.00014574,3]
[330760675,1719759056672,-520.83,0.00014574,3]
[330760676,1719759056683,-500.0,0.00014574,3]
[330760677,1719759056692,-665.72,0.00014574,3]
[330760678,1719759056705,-500.0,0.00014574,3]
[330760679,1719759056715,-500.0,0.00014574,3]
[330760680,1719759056724,-600.44,0.00014574,3]
[330760681,1719759056734,-500.0,0.00014574,3]
[330760682,1719759056745,-500.0,0.00014574,3]
[330760683,1719759056754,-974.46,0.00014574,3]
[330760684,1719759056764,-500.0,0.00014574,3]
[330760685,1719759056774,-500.0,0.00014574,3]
[330760686,1719759056784,-500.0,0.00014582,3]
[330760687,1719759056794,-500.0,0.00014582,3]
[330760688,1719759056805,-513.85,0.00014582,3]
[330760689,1719759056815,-2491.27,0.00014582,3]
[330760690,1719759056826,-500.0,0.00014582,3]
[330760691,1719759056836,-776.8,0.00014582,3]
[330760692,1719759056846,-500.0,0.00014582,3]
[330760693,1719759056856,-500.0,0.00014582,3]
[330760694,1719759056865,-500.0,0.00014582,3]
[330760695,1719759056874,-500.0,0.00014582,3]
[330760696,1719759056884,-500.0,0.00014582,3]
[330760697,1719759056894,-1029.4,0.00014582,3]
[330760698,1719759056904,-500.0,0.00014582,3]
[330760699,1719759056913,-500.0,0.00014582,3]
[330760700,1719759056923,-380.07,0.00014582,3]
[330760701,1719759056934,-500.0,0.00014582,3]
[330760702,1719759056943,-500.0,0.00014582,3]
[330760703,1719759056953,-500.0,0.00014582,3]
[330760704,1719759056962,-500.0,0.00014583,3]
[330760705,1719759056971,-500.0,0.00014583,3]
[330760706,1719759056980,-500.0,0.00014583,3]
[330760707,1719759056990,-500.0,0.00014583,3]
[330760708,1719759056999,-500.0,0.00014583,3]
[330760709,1719759057010,-722.29,0.00014583,3]
[330760710,1719759057023,-217.2,0.00014583,3]
[330760711,1719759057033,-500.0,0.00014583,3]
[330760712,1719759057043,-500.0,0.00014583,3]
[330760713,1719759057053,-500.0,0.00014583,3]
[330760714,1719759057062,-1616.54,0.00014583,3]
[330760715,1719759057072,-500.0,0.00014583,3]
[330760716,1719759057082,-500.0,0.00014583,3]
[330760717,1719759057092,-500.0,0.00014583,3]
[330760718,1719759057101,-500.0,0.00014583,3]
[330760719,1719759057111,-500.0,0.00014583,3]
[330760720,1719759057122,-655.58,0.00014583,3]
[330760721,1719759057131,-500.0,0.00014583,3]
[330760722,1719759057142,-500.0,0.00014583,3]
[330760723,1719759057153,-708.73,0.00014583,3]
[330760724,1719759057163,-500.0,0.00014583,3]
[330760725,1719759057174,-500.0,0.00014583,3]
[330760726,1719759057183,-623.42,0.00014583,3]
[330760727,1719759057192,-500.0,0.00014583,3]
[330760728,1719759057202,-500.0,0.00014583,3]
[330760729,1719759057212,-263.51,0.00014583,3]
[330760730,1719759057221,-346.16,0.00014583,3]
[330760731,1719759057231,-1361.81,0.00014583,3]
[330760732,1719759057241,-500.0,0.00014583,3]
[330760733,1719759057253,-500.0,0.00014583,3]
[330760734,1719759057263,-500.0,0.00014583,3]
[330760735,1719759057274,-150.0,0.00014616,2]
[330760736,1719759057284,-500.0,0.00014654,2]
[330760737,1719759057294,-200.0,0.00014654,2]
[330760738,1719759057303,-1042.97756135,0.00014673,2]
[330760739,1719759057313,-699.49,0.00014682,3]
[330760740,1719759057322,-500.0,0.00014682,3]
[330760741,1719759057332,-500.0,0.00014682,3]
[330760742,1719759057341,-150.0,0.00014682,3]
[330760743,1719759057350,-552.74,0.00014682,3]
[330760744,1719759057359,-500.0,0.00014682,3]
[330760745,1719759057369,-791.92,0.00014682,3]
[330760746,1719759057380,-500.0,0.00014682,3]
[330760747,1719759057390,-500.0,0.00014682,3]
[330760748,1719759057399,-579.92,0.00014682,3]
[330760749,1719759057409,-1002.91,0.00014682,3]
[330760750,1719759057419,-500.0,0.00014682,3]
[330760751,1719759057430,-665.72,0.00014683,3]
[330760752,1719759057439,-287.45,0.00014684,3]
[330760753,1719759057449,-500.0,0.00014684,3]
[330760754,1719759057459,-500.0,0.00014684,3]
[330760755,1719759057468,-500.0,0.00014684,3]
[330760756,1719759057477,-500.0,0.00014684,3]
[330760757,1719759057487,-500.0,0.00014684,3]
[330760758,1719759057496,-500.0,0.00014684,3]
[330760759,1719759057505,-500.0,0.00014684,3]
[330760760,1719759057515,-500.0,0.00014684,3]
[330760761,1719759057525,-500.0,0.00014684,3]
[330760762,1719759057534,-500.0,0.00014684,3]
[330760763,1719759057543,-500.0,0.00014684,3]
[330760764,1719759057553,-2165.81,0.00014684,3]
[330760765,1719759057563,-12970.53,0.00014684,3]
[330760766,1719759057574,-500.0,0.00014684,3]
[330760767,1719759057584,-500.0,0.00014684,3]
[330760768,1719759057594,-1300.21,0.00014684,3]
[330760769,1719759057603,-656.32,0.00014684,3]
[330760770,1719759057612,-1073.9,0.00014684,3]
[330760771,1719759057622,-500.0,0.00014684,3]
[330760772,1719759057631,-500.0,0.00014684,3]
[330760773,1719759057641,-520.83,0.00014684,3]
[330760774,1719759057651,-500.0,0.00014684,3]
[330760775,1719759057715,-500.0,0.00014684,3]
[330760776,1719759057725,-500.0,0.00014684,3]
[330760777,1719759057735,-600.44,0.00014684,3]
[330760778,1719759057744,-500.0,0.00014684,3]
[330760779,1719759057754,-500.0,0.00014684,3]
[330760780,1719759057764,-974.46,0.00014684,3]
[330760781,1719759057773,-500.0,0.00014684,3]
[330760782,1719759057783,-500.0,0.00014684,3]
[330760783,1719759057792,-500.0,0.00014692,3]
[330760784,1719759057802,-500.0,0.00014692,3]
[330760785,1719759057811,-513.85,0.00014692,3]
[330760786,1719759057820,-2491.27,0.00014692,3]
[330760787,1719759057830,-500.0,0.00014692,3]
[330760788,1719759057839,-776.8,0.00014692,3]
[330760789,1719759057850,-500.0,0.00014692,3]
[330760790,1719759057860,-500.0,0.00014692,3]
[330760791,1719759057869,-500.0,0.00014692,3]
[330760792,1719759057879,-500.0,0.00014692,3]
[330760793,1719759057888,-370.91,0.00014692,3]
[330760794,1719759057897,-1029.4,0.00014692,3]
[330760795,1719759057907,-500.0,0.00014692,3]
[330760796,1719759057916,-500.0,0.00014692,3]
[330760797,1719759057925,-500.0,0.00014692,3]
[330760798,1719759057934,-500.0,0.00014692,3]
[330760800,1719759057943,-500.0,0.00014692,3]
[330760801,1719759057952,-500.0,0.00014693,3]
[330760802,1719759057962,-500.0,0.00014693,3]
[330760803,1719759057971,-500.0,0.00014693,3]
[330760804,1719759057980,-500.0,0.00014693,3]
[330760805,1719759057989,-500.0,0.00014693,3]
[330760806,1719759057999,-722.29,0.00014693,3]
[330760807,1719759058008,-500.0,0.00014693,3]
[330760808,1719759058022,-500.0,0.00014693,3]
[330760809,1719759058031,-432.58,0.00014693,3]
[330760810,1719759058041,-1616.54,0.00014693,3]
[330760811,1719759058050,-500.0,0.00014693,3]
[330760812,1719759058061,-242.31,0.00014693,3]
[330760813,1719759058070,-500.0,0.00014693,3]
[330760814,1719759058079,-500.0,0.00014693,3]
[330760815,1719759058088,-500.0,0.00014693,3]
[330760816,1719759058101,-655.58,0.00014693,3]
[330760817,1719759058111,-500.0,0.00014693,3]
[330760818,1719759058121,-500.0,0.00014693,3]
[330760819,1719759058131,-708.73,0.00014693,3]
[330760820,1719759058140,-500.0,0.00014693,3]
[330760821,1719759058149,-500.0,0.00014693,3]
[330760822,1719759058158,-500.0,0.00014693,3]
[330760823,1719759058167,-500.0,0.00014693,3]
[330760824,1719759058177,-1361.81,0.00014693,3]
[330760825,1719759058187,-500.0,0.00014693,3]
[330760826,1719759058196,-220.56,0.00014693,3]
[330760827,1719759058205,-500.0,0.00014693,3]
[330760828,1719759058214,-7363.96672875,0.00014696,2]
[330760829,1719759058223,-699.49,0.00014792,3]
[330760830,1719759058232,-500.0,0.00014792,3]
[330760831,1719759058242,-500.0,0.00014792,3]
[330760832,1719759058254,-288.32,0.00014792,3]
[330760833,1719759058264,-500.0,0.00014792,3]
[330760834,1719759058274,-791.92,0.00014792,3]
[330760835,1719759058283,-500.0,0.00014792,3]
[330760836,1719759058292,-500.0,0.00014792,3]
[330760837,1719759058301,-579.92,0.00014792,3]
[330760838,1719759058310,-1002.91,0.00014792,3]
[330760839,1719759058319,-463.91,0.00014792,3]
[330760840,1719759058330,-500.0,0.00014793,3]
[330760841,1719759058339,-500.0,0.00014793,3]
[330760842,1719759058348,-379.24,0.00014793,3]
[330760843,1719759058357,-500.0,0.00014793,3]
[330760844,1719759058366,-500.0,0.00014793,3]
[330760845,1719759058375,-500.0,0.00014793,3]
[330760846,1719759058384,-500.0,0.00014793,3]
[330760847,1719759058393,-500.0,0.00014793,3]
[330760848,1719759058402,-500.0,0.00014793,3]
[330760849,1719759058412,-500.0,0.00014793,3]
[330760850,1719759058421,-500.0,0.00014793,3]
[330760851,1719759058432,-2165.81,0.00014793,3]
[330760852,1719759058441,-12970.53,0.00014793,3]
[330760853,1719759058450,-272.56,0.00014793,3]
[330760854,1719759058461,-500.0,0.00014793,3]
[330760855,1719759058471,-1300.21,0.00014793,3]
[330760856,1719759058480,-656.32,0.00014793,3]
[330760857,1719759058489,-1073.9,0.00014793,3]
[330760858,1719759058499,-500.0,0.00014793,3]
[330760859,1719759058508,-500.0,0.00014793,3]
[330760860,1719759058517,-520.83,0.00014793,3]
[330760861,1719759058526,-500.0,0.00014793,3]
[330760862,1719759058535,-665.72,0.00014793,3]
[330760863,1719759058544,-500.0,0.00014793,3]
[330760864,1719759058553,-475.32154644,0.00014793,3]
[330760865,1719759058562,-600.44,0.00014793,3]
[330760866,1719759058572,-500.0,0.00014793,3]
[330760867,1719759058582,-500.0,0.00014793,3]
[330760868,1719759058591,-974.46,0.00014793,3]
[330760869,1719759058600,-500.0,0.00014793,3]
[330760870,1719759058609,-500.0,0.00014793,3]
[330760871,1719759058618,-500.0,0.00014801,3]
[330760872,1719759058628,-500.0,0.00014801,3]
[330760873,1719759058638,-513.85,0.00014801,3]
[330760874,1719759058647,-2491.27,0.00014801,3]
[330760875,1719759058657,-500.0,0.00014801,3]
[330760876,1719759058667,-776.8,0.00014801,3]
[330760877,1719759058678,-500.0,0.00014801,3]
[330760878,1719759058687,-500.0,0.00014801,3]
[330760879,1719759058697,-228.50945432,0.00014801,3]
[330760880,1719759058707,-269.39,0.00014801,3]
[330760881,1719759058718,-1029.4,0.00014801,3]
[330760882,1719759058727,-500.0,0.00014801,3]
[330760883,1719759058736,-500.0,0.00014801,3]
[330760884,1719759058747,-535.64546779,0.00014801,3]
[330760885,1719759058757,-500.0,0.00014801,3]
[330760886,1719759058767,-500.0,0.00014801,3]
[330760887,1719759058778,-500.0,0.00014802,3]
[330760888,1719759058789,-500.0,0.00014802,3]
[330760889,1719759058799,-397.73,0.00014802,3]
[330760890,1719759058808,-500.0,0.00014802,3]
[330760891,1719759058819,-500.0,0.00014802,3]
[330760892,1719759058828,-722.29,0.00014802,3]
[330760893,1719759058838,-500.0,0.00014802,3]
[330760894,1719759058847,-500.0,0.00014802,3]
[330760895,1719759058857,-1616.54,0.00014802,3]
[330760896,1719759058867,-500.0,0.00014802,3]
[330760897,1719759058878,-500.0,0.00014802,3]
[330760898,1719759058888,-500.0,0.00014802,3]
[330760899,1719759058897,-500.0,0.00014802,3]
[330760900,1719759058907,-655.58,0.00014802,3]
[330760901,1719759058918,-500.0,0.00014802,3]
[330760902,1719759058927,-500.0,0.00014802,3]
[330760903,1719759058938,-708.73,0.00014802,3]
[330760904,1719759058947,-500.0,0.00014802,3]
[330760905,1719759058956,-500.0,0.00014802,3]
[330760906,1719759058965,-500.0,0.00014802,3]
[330760907,1719759058974,-500.0,0.00014802,3]
[330760908,1719759058984,-1361.81,0.00014802,3]
[330760909,1719759058993,-246.14,0.00014802,3]
[330760910,1719759059002,-500.0,0.00014802,3]
[330760911,1719759059014,-1188.8485995,0.00014829,2]